[Event "*** Titled Tuesday Blitz"]
[Site "Chess.com"]
[Date "2021.02.16"]
[Round "2"]
[White "Maddie"]
[Black "Loy_Konstantin"]
[Result "1/2-1/2"]
[WhiteElo "2040"]
[BlackElo "2377"]
[TimeControl "180+1"]
[EndTime "10:20:53 PST"]
[Termination "Game drawn by stalemate"]

1. d4 {[%clk 0:03:00.9]} 1... Nf6 {[%clk 0:02:59.8]} 2. e3 {[%clk 0:03:00.4]}
2... g6 {[%clk 0:02:59]} 3. Bd3 {[%clk 0:03:00.5]} 3... Bg7 {[%clk 0:02:59.5]}
4. f4 {[%clk 0:03:00.9]} 4... O-O {[%clk 0:02:59.4]} 5. Nf3 {[%clk 0:03:01.5]}
5... d6 {[%clk 0:02:59.5]} 6. O-O {[%clk 0:03:02]} 6... e5 {[%clk 0:02:56.6]} 7.
fxe5 {[%clk 0:02:48.4]} 7... dxe5 {[%clk 0:02:54.7]} 8. Bc4 {[%clk 0:02:48.3]}
8... exd4 {[%clk 0:02:49.2]} 9. exd4 {[%clk 0:02:47]} 9... h6 {[%clk 0:02:37.7]}
10. c3 {[%clk 0:02:39.3]} 10... c5 {[%clk 0:02:32.5]} 11. dxc5 {[%clk
0:02:35.5]} 11... Qc7 {[%clk 0:02:25.7]} 12. Be3 {[%clk 0:02:22.4]} 12... Nbd7
{[%clk 0:02:22.5]} 13. Nbd2 {[%clk 0:02:17.3]} 13... Nxc5 {[%clk 0:02:16.9]} 14.
Nb3 {[%clk 0:02:08.7]} 14... Nce4 {[%clk 0:01:51.3]} 15. Bd3 {[%clk 0:01:58.1]}
15... Rd8 {[%clk 0:01:48.3]} 16. Qc2 {[%clk 0:01:55.3]} 16... Nd6 {[%clk
0:01:16.9]} 17. Nfd4 {[%clk 0:01:51.4]} 17... a6 {[%clk 0:01:09.8]} 18. Qd2
{[%clk 0:01:46.3]} 18... Nc4 {[%clk 0:01:07.1]} 19. Bxc4 {[%clk 0:01:39.2]}
19... Qxc4 {[%clk 0:01:08]} 20. Bxh6 {[%clk 0:01:37.3]} 20... Ne4 {[%clk
0:00:30.5]} 21. Qf4 {[%clk 0:01:21.9]} 21... f5 {[%clk 0:00:27.3]} 22. Bxg7
{[%clk 0:01:20.3]} 22... Kxg7 {[%clk 0:00:27.3]} 23. Qe5+ {[%clk 0:00:58.2]}
23... Kg8 {[%clk 0:00:21.9]} 24. Qe7 {[%clk 0:00:46.2]} 24... Rf8 {[%clk
0:00:14.7]} 25. Qh4 {[%clk 0:00:34.5]} 25... Qf7 {[%clk 0:00:14.5]} 26. Qe1
{[%clk 0:00:28.2]} 26... Bd7 {[%clk 0:00:13.6]} 27. Nd2 {[%clk 0:00:27.3]} 27...
Rae8 {[%clk 0:00:13.9]} 28. Nxe4 {[%clk 0:00:27.1]} 28... Rxe4 {[%clk
0:00:14.5]} 29. Qd2 {[%clk 0:00:26.3]} 29... Qe7 {[%clk 0:00:13.4]} 30. Rae1
{[%clk 0:00:26]} 30... Bc6 {[%clk 0:00:12.3]} 31. Rxe4 {[%clk 0:00:25.8]} 31...
Bxe4 {[%clk 0:00:11.7]} 32. Re1 {[%clk 0:00:25.6]} 32... Qe5 {[%clk 0:00:11]}
33. Nf3 {[%clk 0:00:24.4]} 33... Re8 {[%clk 0:00:09.2]} 34. Nxe5 {[%clk
0:00:23.9]} 34... Rxe5 {[%clk 0:00:09.8]} 35. Qd8+ {[%clk 0:00:23.2]} 35... Kf7
{[%clk 0:00:09.3]} 36. Qc7+ {[%clk 0:00:22.6]} 36... Re7 {[%clk 0:00:09.5]} 37.
Qc4+ {[%clk 0:00:22.4]} 37... Kf6 {[%clk 0:00:09.5]} 38. Qd4+ {[%clk 0:00:22.6]}
38... Kf7 {[%clk 0:00:09.4]} 39. Qc4+ {[%clk 0:00:22.2]} 39... Kf6 {[%clk
0:00:09.9]} 40. Qf1 {[%clk 0:00:22.4]} 40... Kf7 {[%clk 0:00:09.2]} 41. g4
{[%clk 0:00:22.2]} 41... Kf6 {[%clk 0:00:09]} 42. gxf5 {[%clk 0:00:22.4]} 42...
gxf5 {[%clk 0:00:09.9]} 43. Qf2 {[%clk 0:00:22.3]} 43... Rg7+ {[%clk 0:00:10.3]}
44. Kf1 {[%clk 0:00:21.9]} 44... Bd3+ {[%clk 0:00:10.6]} 45. Re2 {[%clk
0:00:21]} 45... Bxe2+ {[%clk 0:00:09.5]} 46. Kxe2 {[%clk 0:00:21.9]} 46... Re7+
{[%clk 0:00:09.2]} 47. Kd2 {[%clk 0:00:22.1]} 47... Re4 {[%clk 0:00:09.3]} 48.
Kc2 {[%clk 0:00:22.3]} 48... Ke5 {[%clk 0:00:09.3]} 49. Qc5+ {[%clk 0:00:22.3]}
49... Kf4 {[%clk 0:00:09.2]} 50. Qf2+ {[%clk 0:00:20.8]} 50... Ke5 {[%clk
0:00:09.4]} 51. Qg3+ {[%clk 0:00:21.2]} 51... Kf6 {[%clk 0:00:08.5]} 52. Qd6+
{[%clk 0:00:20.2]} 52... Kg5 {[%clk 0:00:08.8]} 53. Qf8 {[%clk 0:00:20.2]} 53...
f4 {[%clk 0:00:08.1]} 54. Qg8+ {[%clk 0:00:20.3]} 54... Kf5 {[%clk 0:00:08.3]}
55. Qh7+ {[%clk 0:00:20.1]} 55... Ke5 {[%clk 0:00:08.7]} 56. Qe7+ {[%clk
0:00:20.3]} 56... Kf5 {[%clk 0:00:08.9]} 57. Qf7+ {[%clk 0:00:20.2]} 57... Ke5
{[%clk 0:00:09.1]} 58. Qh5+ {[%clk 0:00:20.8]} 58... Ke6 {[%clk 0:00:08.6]} 59.
Qg6+ {[%clk 0:00:21]} 59... Ke5 {[%clk 0:00:09.1]} 60. h4 {[%clk 0:00:21.3]}
60... Re2+ {[%clk 0:00:07.8]} 61. Kd3 {[%clk 0:00:21.1]} 61... Re3+ {[%clk
0:00:08.2]} 62. Kd2 {[%clk 0:00:21.1]} 62... Rg3 {[%clk 0:00:09]} 63. Qxg3
{[%clk 0:00:20.5]} 63... fxg3 {[%clk 0:00:08.9]} 64. Ke3 {[%clk 0:00:21.2]}
64... Kf5 {[%clk 0:00:06]} 65. Kf3 {[%clk 0:00:21.5]} 65... g2 {[%clk
0:00:06.6]} 66. Kxg2 {[%clk 0:00:21.7]} 66... Kg4 {[%clk 0:00:07.5]} 67. Kf2
{[%clk 0:00:22]} 67... Kxh4 {[%clk 0:00:07.9]} 68. Ke3 {[%clk 0:00:22.8]} 68...
Kg5 {[%clk 0:00:08.8]} 69. Kd4 {[%clk 0:00:23.4]} 69... Kf6 {[%clk 0:00:09.7]}
70. Kd5 {[%clk 0:00:23.9]} 70... Ke7 {[%clk 0:00:10]} 71. Kc5 {[%clk 0:00:24.3]}
71... Kd7 {[%clk 0:00:10.2]} 72. Kb6 {[%clk 0:00:24.9]} 72... Kc8 {[%clk
0:00:10.8]} 73. a4 {[%clk 0:00:24.9]} 73... Kb8 {[%clk 0:00:11.1]} 74. c4 {[%clk
0:00:25.4]} 74... Kc8 {[%clk 0:00:11.6]} 75. c5 {[%clk 0:00:24.7]} 75... Kb8
{[%clk 0:00:11.9]} 76. b4 {[%clk 0:00:25.1]} 76... Kc8 {[%clk 0:00:12]} 77. b5
{[%clk 0:00:25.3]} 77... axb5 {[%clk 0:00:12.9]} 78. axb5 {[%clk 0:00:25.5]}
78... Kb8 {[%clk 0:00:11.3]} 79. Ka5 {[%clk 0:00:25.8]} 79... Kc7 {[%clk
0:00:10.7]} 80. Kb4 {[%clk 0:00:25.4]} 80... Kd7 {[%clk 0:00:11]} 81. Kc4 {[%clk
0:00:25.4]} 81... Ke6 {[%clk 0:00:09.5]} 82. Kd4 {[%clk 0:00:25.8]} 82... Ke7
{[%clk 0:00:10]} 83. Kd5 {[%clk 0:00:26.3]} 83... Kd7 {[%clk 0:00:10.5]} 84. c6+
{[%clk 0:00:26.6]} 84... bxc6+ {[%clk 0:00:10.6]} 85. bxc6+ {[%clk 0:00:27.1]}
85... Kc7 {[%clk 0:00:10.9]} 86. Kc5 {[%clk 0:00:27.1]} 86... Kc8 {[%clk
0:00:11.3]} 87. Kb6 {[%clk 0:00:27.1]} 87... Kb8 {[%clk 0:00:11.4]} 88. c7+
{[%clk 0:00:27.7]} 88... Kc8 {[%clk 0:00:11.6]} 89. Kc6 {[%clk 0:00:28.1]}
1/2-1/2

[Event "*** Titled Tuesday Blitz"]
[Site "Chess.com"]
[Date "2021.02.16"]
[Round "2"]
[White "kamilianin235"]
[Black "Taran2004"]
[Result "1-0"]
[WhiteElo "2165"]
[BlackElo "2409"]
[TimeControl "180+1"]
[EndTime "10:21:10 PST"]
[Termination "kamilianin235 won by checkmate"]

1. e4 {[%clk 0:03:00.9]} 1... c5 {[%clk 0:02:59.2]} 2. Nf3 {[%clk 0:02:59.5]}
2... d6 {[%clk 0:02:59.4]} 3. d4 {[%clk 0:02:58.1]} 3... cxd4 {[%clk 0:03:00.3]}
4. Nxd4 {[%clk 0:02:57]} 4... Nf6 {[%clk 0:03:00.6]} 5. Nc3 {[%clk 0:02:47.5]}
5... a6 {[%clk 0:03:00.4]} 6. Bc4 {[%clk 0:02:45.9]} 6... e6 {[%clk 0:02:59.5]}
7. O-O {[%clk 0:02:44.3]} 7... Be7 {[%clk 0:02:58.8]} 8. f4 {[%clk 0:02:42.8]}
8... Nc6 {[%clk 0:02:58.8]} 9. Be3 {[%clk 0:02:37.6]} 9... Qc7 {[%clk
0:02:58.2]} 10. Bb3 {[%clk 0:02:34.5]} 10... b5 {[%clk 0:02:56.4]} 11. Qf3
{[%clk 0:02:33.1]} 11... Bb7 {[%clk 0:02:55.9]} 12. Rad1 {[%clk 0:02:26.6]}
12... b4 {[%clk 0:02:55.2]} 13. Nce2 {[%clk 0:02:20.4]} 13... Nxd4 {[%clk
0:02:54.4]} 14. Nxd4 {[%clk 0:02:20.4]} 14... Nxe4 {[%clk 0:02:51.8]} 15. Bxe6
{[%clk 0:02:10]} 15... Ng5 {[%clk 0:02:36.7]} 16. Qh5 {[%clk 0:01:52.4]} 16...
g6 {[%clk 0:02:24.2]} 17. fxg5 {[%clk 0:01:37.5]} 17... fxe6 {[%clk 0:02:13.5]}
18. Nxe6 {[%clk 0:01:31.7]} 18... Qxc2 {[%clk 0:02:01.8]} 19. Qg4 {[%clk
0:01:23.1]} 19... Qe4 {[%clk 0:01:47]} 20. Qxe4 {[%clk 0:01:16.4]} 20... Bxe4
{[%clk 0:01:47.9]} 21. Nc7+ {[%clk 0:01:16.2]} 21... Kd7 {[%clk 0:01:47.5]} 22.
Nxa8 {[%clk 0:01:16.1]} 22... Rxa8 {[%clk 0:01:48.3]} 23. Rfe1 {[%clk 0:01:14]}
23... Bf5 {[%clk 0:01:44.9]} 24. Bf4 {[%clk 0:01:13.2]} 24... Rc8 {[%clk
0:01:44.6]} 25. Re2 {[%clk 0:01:12.6]} 25... Bg4 {[%clk 0:01:43.4]} 26. Rxe7+
{[%clk 0:01:12.3]} 26... Kxe7 {[%clk 0:01:42.9]} 27. Rxd6 {[%clk 0:01:12.7]}
27... Rc2 {[%clk 0:01:38.1]} 28. Rxa6 {[%clk 0:01:11.9]} 28... Rxb2 {[%clk
0:01:38]} 29. Ra7+ {[%clk 0:01:11.6]} 29... Ke6 {[%clk 0:01:37.9]} 30. Rxh7
{[%clk 0:01:11.4]} 30... Rxa2 {[%clk 0:01:37]} 31. Rb7 {[%clk 0:01:11.1]} 31...
Rb2 {[%clk 0:01:32.5]} 32. Be3 {[%clk 0:01:02.1]} 32... b3 {[%clk 0:01:29.7]}
33. h3 {[%clk 0:01:00.7]} 33... Bf5 {[%clk 0:01:25.6]} 34. Bd4 {[%clk 0:01:00]}
34... Rb1+ {[%clk 0:01:22.4]} 35. Kh2 {[%clk 0:01:00]} 35... Be4 {[%clk
0:01:22.9]} 36. Rb8 {[%clk 0:00:58.5]} 36... Rd1 {[%clk 0:01:14.8]} 37. Bf6
{[%clk 0:00:55.9]} 37... Bd5 {[%clk 0:01:11.4]} 38. Re8+ {[%clk 0:00:50.9]}
38... Kf5 {[%clk 0:01:02.3]} 39. Re5+ {[%clk 0:00:49.9]} 39... Kf4 {[%clk
0:01:02.6]} 40. Re2 {[%clk 0:00:48.4]} 40... Bc4 {[%clk 0:00:54.3]} 41. Rb2
{[%clk 0:00:41.8]} 41... Rc1 {[%clk 0:00:51.8]} 42. Rf2+ {[%clk 0:00:39]} 42...
Ke3 {[%clk 0:00:50.3]} 43. Rb2 {[%clk 0:00:39.1]} 43... Rc2 {[%clk 0:00:49.9]}
44. Kg3 {[%clk 0:00:36]} 44... Bd5 {[%clk 0:00:48]} 45. Be5 {[%clk 0:00:29.6]}
45... Bxg2 {[%clk 0:00:41.5]} 46. Rxb3+ {[%clk 0:00:28.8]} 46... Ke4 {[%clk
0:00:40.1]} 47. Bf4 {[%clk 0:00:26.9]} 47... Bf1 {[%clk 0:00:37.9]} 48. Re3+
{[%clk 0:00:26.1]} 48... Kd4 {[%clk 0:00:33]} 49. Re8 {[%clk 0:00:23.7]} 49...
Rg2+ {[%clk 0:00:32.4]} 50. Kf3 {[%clk 0:00:23.6]} 50... Ra2 {[%clk 0:00:29.4]}
51. Rd8+ {[%clk 0:00:23.3]} 51... Kc5 {[%clk 0:00:28.7]} 52. h4 {[%clk
0:00:22.8]} 52... Be2+ {[%clk 0:00:28.2]} 53. Kg3 {[%clk 0:00:21.6]} 53... Bh5
{[%clk 0:00:28.4]} 54. Rc8+ {[%clk 0:00:18.6]} 54... Kd5 {[%clk 0:00:28.2]} 55.
Rd8+ {[%clk 0:00:18.4]} 55... Ke6 {[%clk 0:00:27.6]} 56. Re8+ {[%clk 0:00:17.6]}
56... Kf7 {[%clk 0:00:28]} 57. Rb8 {[%clk 0:00:16.4]} 57... Ra3+ {[%clk
0:00:27.5]} 58. Kg2 {[%clk 0:00:15.1]} 58... Ke6 {[%clk 0:00:27.5]} 59. Rb4
{[%clk 0:00:12]} 59... Kf5 {[%clk 0:00:25.5]} 60. Bg3 {[%clk 0:00:12]} 60...
Ra2+ {[%clk 0:00:24.3]} 61. Kh3 {[%clk 0:00:12.1]} 61... Be2 {[%clk 0:00:20.7]}
62. Rf4+ {[%clk 0:00:11.3]} 62... Ke6 {[%clk 0:00:20]} 63. Rf6+ {[%clk
0:00:11.1]} 63... Ke7 {[%clk 0:00:17.8]} 64. Rxg6 {[%clk 0:00:10.6]} 64... Bf1+
{[%clk 0:00:17.1]} 65. Kg4 {[%clk 0:00:10.7]} 65... Ra4+ {[%clk 0:00:17.6]} 66.
Bf4 {[%clk 0:00:10.4]} 66... Kf7 {[%clk 0:00:18.1]} 67. Rf6+ {[%clk 0:00:09.8]}
67... Kg7 {[%clk 0:00:18.7]} 68. Kg3 {[%clk 0:00:07.2]} 68... Ra3+ {[%clk
0:00:18]} 69. Kf2 {[%clk 0:00:07.3]} 69... Bh3 {[%clk 0:00:17.2]} 70. Be5 {[%clk
0:00:06.9]} 70... Ra2+ {[%clk 0:00:15.8]} 71. Kg3 {[%clk 0:00:06.5]} 71... Ra3+
{[%clk 0:00:14.6]} 72. Rf3+ {[%clk 0:00:06.2]} 72... Kg6 {[%clk 0:00:12]} 73.
Rxa3 {[%clk 0:00:06.5]} 73... Be6 {[%clk 0:00:12.3]} 74. Ra6 {[%clk 0:00:05.2]}
74... Kf7 {[%clk 0:00:12.2]} 75. Bf4 {[%clk 0:00:05.3]} 75... Bd5 {[%clk
0:00:12.1]} 76. h5 {[%clk 0:00:05]} 76... Bc4 {[%clk 0:00:10.8]} 77. Rb6 {[%clk
0:00:05.1]} 77... Bd5 {[%clk 0:00:11]} 78. h6 {[%clk 0:00:04.9]} 78... Be4
{[%clk 0:00:10.9]} 79. Kg4 {[%clk 0:00:03.7]} 79... Bh7 {[%clk 0:00:10.2]} 80.
Rf6+ {[%clk 0:00:04]} 80... Kg8 {[%clk 0:00:10.4]} 81. Ra6 {[%clk 0:00:03.8]}
81... Be4 {[%clk 0:00:09.7]} 82. Ra7 {[%clk 0:00:03.4]} 82... Bd5 {[%clk
0:00:09.3]} 83. Kh5 {[%clk 0:00:03.2]} 83... Bf7+ {[%clk 0:00:09.1]} 84. g6
{[%clk 0:00:03]} 84... Bc4 {[%clk 0:00:10]} 85. Ra8# {[%clk 0:00:02.4]} 1-0

[Event "*** Titled Tuesday Blitz"]
[Site "Chess.com"]
[Date "2021.02.16"]
[Round "2"]
[White "Sjakkerntobi"]
[Black "Ginger_GM"]
[Result "0-1"]
[WhiteElo "2315"]
[BlackElo "2635"]
[TimeControl "180+1"]
[EndTime "10:21:24 PST"]
[Termination "Ginger_GM won on time"]

1. e4 {[%clk 0:03:00.9]} 1... e6 {[%clk 0:02:57]} 2. d4 {[%clk 0:03:00.4]} 2...
d5 {[%clk 0:02:55.9]} 3. Nd2 {[%clk 0:03:00.9]} 3... Nf6 {[%clk 0:02:55.3]} 4.
e5 {[%clk 0:03:01.1]} 4... Nfd7 {[%clk 0:02:55.1]} 5. Bd3 {[%clk 0:03:01.6]}
5... c5 {[%clk 0:02:55.2]} 6. c3 {[%clk 0:03:02.1]} 6... Nc6 {[%clk 0:02:55.3]}
7. Ne2 {[%clk 0:03:02]} 7... cxd4 {[%clk 0:02:55.5]} 8. cxd4 {[%clk 0:03:02.9]}
8... f6 {[%clk 0:02:55.9]} 9. exf6 {[%clk 0:03:03.8]} 9... Nxf6 {[%clk
0:02:55.9]} 10. Nf3 {[%clk 0:03:04.7]} 10... Bd6 {[%clk 0:02:55.8]} 11. Bf4
{[%clk 0:03:04.7]} 11... Qa5+ {[%clk 0:02:53.3]} 12. Qd2 {[%clk 0:03:04.4]}
12... Qxd2+ {[%clk 0:02:37.6]} 13. Kxd2 {[%clk 0:03:05.3]} 13... Bxf4+ {[%clk
0:02:37.5]} 14. Nxf4 {[%clk 0:03:05.1]} 14... O-O {[%clk 0:02:37.5]} 15. Rhe1
{[%clk 0:03:04.1]} 15... Ne4+ {[%clk 0:02:26.3]} 16. Bxe4 {[%clk 0:03:04.1]}
16... Rxf4 {[%clk 0:02:24.9]} 17. Bd3 {[%clk 0:03:04.7]} 17... Nxd4 {[%clk
0:02:14.9]} 18. Ke3 {[%clk 0:03:04.8]} 18... Nxf3 {[%clk 0:02:10.6]} 19. Kxf4
{[%clk 0:03:05.1]} 19... Nxe1 {[%clk 0:02:10]} 20. Rxe1 {[%clk 0:03:06]} 20...
Bd7 {[%clk 0:01:55.3]} 21. Ke5 {[%clk 0:03:05.6]} 21... Kf7 {[%clk 0:01:52.4]}
22. Kd6 {[%clk 0:02:47.9]} 22... Bc6 {[%clk 0:01:43]} 23. Rxe6 {[%clk
0:01:54.3]} 23... Rd8+ {[%clk 0:01:40.4]} 24. Ke5 {[%clk 0:01:54.4]} 24... g6
{[%clk 0:01:00.1]} 25. h4 {[%clk 0:01:37.9]} 25... Bd7 {[%clk 0:00:48.7]} 26.
Rf6+ {[%clk 0:01:36.8]} 26... Kg7 {[%clk 0:00:47.6]} 27. Rd6 {[%clk 0:01:30.5]}
27... Re8+ {[%clk 0:00:46.6]} 28. Kxd5 {[%clk 0:01:22.2]} 28... Bc6+ {[%clk
0:00:46.5]} 29. Kd4 {[%clk 0:01:22.5]} 29... Bxg2 {[%clk 0:00:44.2]} 30. a4
{[%clk 0:00:58.9]} 30... Re7 {[%clk 0:00:41.4]} 31. a5 {[%clk 0:00:58.6]} 31...
Rf7 {[%clk 0:00:37.5]} 32. Ke3 {[%clk 0:00:57.6]} 32... Rf3+ {[%clk 0:00:36.6]}
33. Ke2 {[%clk 0:00:56.9]} 33... Rf4 {[%clk 0:00:36.8]} 34. Rd7+ {[%clk
0:00:47.1]} 34... Kh6 {[%clk 0:00:36.7]} 35. a6 {[%clk 0:00:47.4]} 35... bxa6
{[%clk 0:00:34.7]} 36. Rxa7 {[%clk 0:00:47.3]} 36... Rxh4 {[%clk 0:00:34.2]} 37.
Rxa6 {[%clk 0:00:43.1]} 37... Rb4 {[%clk 0:00:34.2]} 38. Ra2 {[%clk 0:00:27.8]}
38... Bd5 {[%clk 0:00:33.6]} 39. Ra5 {[%clk 0:00:27.5]} 39... Rxb2+ {[%clk
0:00:33.6]} 40. Ke3 {[%clk 0:00:28.1]} 40... Bg2 {[%clk 0:00:30.4]} 41. Be2
{[%clk 0:00:20.5]} 41... Bb7 {[%clk 0:00:27]} 42. Rc5 {[%clk 0:00:16.2]} 42...
Rb6 {[%clk 0:00:25.5]} 43. Kf4 {[%clk 0:00:14.6]} 43... Rc6 {[%clk 0:00:22.9]}
44. Rxc6 {[%clk 0:00:14.4]} 44... Bxc6 {[%clk 0:00:22.9]} 45. Kg3 {[%clk
0:00:15]} 45... Kg5 {[%clk 0:00:22]} 46. f4+ {[%clk 0:00:14.8]} 46... Kf6 {[%clk
0:00:21.7]} 47. Bd3 {[%clk 0:00:15]} 47... h6 {[%clk 0:00:20.4]} 48. Bc2 {[%clk
0:00:13.7]} 48... Bd7 {[%clk 0:00:20.7]} 49. Bd3 {[%clk 0:00:13.2]} 49... Bf5
{[%clk 0:00:20.7]} 50. Be2 {[%clk 0:00:13.3]} 50... Ke6 {[%clk 0:00:20.8]} 51.
Bf3 {[%clk 0:00:13.6]} 51... Kd6 {[%clk 0:00:21]} 52. Be2 {[%clk 0:00:13.2]}
52... Kc5 {[%clk 0:00:21.3]} 53. Bd1 {[%clk 0:00:13.6]} 53... Kd4 {[%clk
0:00:21.7]} 54. Be2 {[%clk 0:00:13.8]} 54... Ke3 {[%clk 0:00:21.9]} 55. Ba6
{[%clk 0:00:14]} 55... Be4 {[%clk 0:00:11.8]} 56. Bc8 {[%clk 0:00:12.2]} 56...
Bf5 {[%clk 0:00:11.4]} 57. Bb7 {[%clk 0:00:12.1]} 57... Be4 {[%clk 0:00:11.4]}
58. Bc8 {[%clk 0:00:12.1]} 58... Bf3 {[%clk 0:00:11.8]} 59. Be6 {[%clk
0:00:08.9]} 59... Be4 {[%clk 0:00:11.8]} 60. Bd7 {[%clk 0:00:08.8]} 60... Kd4
{[%clk 0:00:11.8]} 61. Be6 {[%clk 0:00:08.1]} 61... Bd5 {[%clk 0:00:07.7]} 62.
Bc8 {[%clk 0:00:06.2]} 62... Ke4 {[%clk 0:00:07.5]} 63. Bh3 {[%clk 0:00:05]}
63... Bf7 {[%clk 0:00:05.5]} 64. Bg2+ {[%clk 0:00:05.3]} 64... Kd4 {[%clk
0:00:05.1]} 65. Bc6 {[%clk 0:00:05.5]} 65... Kc5 {[%clk 0:00:05.2]} 66. Bd7
{[%clk 0:00:04.6]} 66... Kd6 {[%clk 0:00:06.1]} 67. Bh3 {[%clk 0:00:04.8]} 67...
Ke7 {[%clk 0:00:06.4]} 68. Bg2 {[%clk 0:00:05.3]} 68... Kf6 {[%clk 0:00:06.8]}
69. Bf1 {[%clk 0:00:05.7]} 69... Bd5 {[%clk 0:00:07.1]} 70. Bd3 {[%clk
0:00:05.4]} 70... h5 {[%clk 0:00:07.1]} 71. Be2 {[%clk 0:00:04.1]} 71... Be4
{[%clk 0:00:07]} 72. Bb5 {[%clk 0:00:03.7]} 72... Ke6 {[%clk 0:00:07.1]} 73. Ba6
{[%clk 0:00:03.4]} 73... Kd5 {[%clk 0:00:07.1]} 74. Bb7+ {[%clk 0:00:03.5]}
74... Kd4 {[%clk 0:00:07.1]} 75. Bc8 {[%clk 0:00:04.4]} 75... Ke3 {[%clk
0:00:07.4]} 76. Bd7 {[%clk 0:00:04.4]} 76... h4+ {[%clk 0:00:07.7]} 77. Kxh4
{[%clk 0:00:04.7]} 77... Kxf4 {[%clk 0:00:08.3]} 78. Bc8 {[%clk 0:00:03.1]}
78... Bf5 {[%clk 0:00:08.6]} 79. Bb7 {[%clk 0:00:03.2]} 79... g5+ {[%clk
0:00:08.7]} 80. Kh5 {[%clk 0:00:03.3]} 80... Be6 {[%clk 0:00:07]} 81. Kg6 {[%clk
0:00:01.1]} 81... g4 {[%clk 0:00:04.3]} 82. Kf6 {[%clk 0:00:01.7]} 82... Bd7
{[%clk 0:00:04.1]} 83. Kg6 {[%clk 0:00:02.1]} 83... g3 {[%clk 0:00:04.4]} 84.
Kh5 {[%clk 0:00:01.4]} 84... Bg4+ {[%clk 0:00:05.1]} 85. Kh4 {[%clk 0:00:01.3]}
85... Bf3 {[%clk 0:00:05.7]} 0-1